[Event "BPB Limburg Open 2019 Group A"]
[Site "Maastricht, Netherlands"]
[Date "2019.06.10"]
[Round "7.4"]
[White "Van Foreest, Jorden"]
[Black "Warmerdam, Max"]
[Result "1/2-1/2"]
[TimeControl "2h + 15 sec/move"]
[WhiteFideId "1039784"]
[BlackFideId "1048104"]
[WhiteElo "2610"]
[BlackElo "2475"]

1. Nf3 {[%clk 02:00:22]} {[%emt 00:00:07]} d5 {[%clk 02:00:09]} {[%emt
00:00:22]} 2. d4 {[%clk 02:00:30]} {[%emt 00:00:08]} e6 {[%clk 02:00:12]}
{[%emt 00:00:11]} 3. c4 {[%clk 01:59:59]} {[%emt 00:00:46]} a6 {[%clk
02:00:09]} {[%emt 00:00:18]} 4. e3 {[%clk 01:55:48]} {[%emt 00:04:25]} Nf6
{[%clk 01:59:52]} {[%emt 00:00:32]} 5. Nc3 {[%clk 01:53:43]} {[%emt 00:02:20]}
c5 {[%clk 01:59:34]} {[%emt 00:00:34]} 6. a3 {[%clk 01:52:57]} {[%emt
00:01:02]} dxc4 {[%clk 01:56:09]} {[%emt 00:03:39]} 7. Bxc4 {[%clk 01:53:05]}
{[%emt 00:00:07]} b5 {[%clk 01:53:02]} {[%emt 00:03:22]} 8. Ba2 {[%clk
01:46:07]} {[%emt 00:07:13]} Bb7 {[%clk 01:53:03]} {[%emt 00:00:14]} 9. O-O
{[%clk 01:46:12]} {[%emt 00:00:08]} Nbd7 {[%clk 01:47:09]} {[%emt 00:06:11]} 10.
Qe2 {[%clk 01:41:24]} {[%emt 00:05:04]} Qb8 {[%clk 01:29:37]} {[%emt 00:17:46]}
11. Rd1 {[%clk 01:37:35]} {[%emt 00:04:04]} Bd6 {[%clk 01:23:52]} {[%emt
00:06:00]} 12. dxc5 {[%clk 01:36:27]} {[%emt 00:01:24]} Nxc5 {[%clk 01:20:31]}
{[%emt 00:03:36]} 13. b4 {[%clk 01:35:51]} {[%emt 00:00:51]} Nce4 {[%clk
01:15:42]} {[%emt 00:05:03]} 14. Nxe4 {[%clk 01:33:16]} {[%emt 00:02:51]} Nxe4
{[%clk 00:55:43]} {[%emt 00:20:15]} 15. Bb2 {[%clk 01:31:45]} {[%emt 00:01:46]}
O-O {[%clk 00:55:43]} {[%emt 00:00:14]} 16. Rac1 {[%clk 01:28:12]} {[%emt
00:03:48]} a5 {[%clk 00:46:04]} {[%emt 00:09:54]} 17. Bb3 {[%clk 01:15:22]}
{[%emt 00:13:05]} axb4 {[%clk 00:32:01]} {[%emt 00:14:19]} 18. axb4 {[%clk
01:14:52]} {[%emt 00:00:44]} Bxb4 {[%clk 00:04:41]} {[%emt 00:27:36]} 19. Ne5
{[%clk 01:11:08]} {[%emt 00:03:59]} Nf6 {[%clk 00:04:54]} {[%emt 00:00:02]} 20.
Ng4 {[%clk 01:08:04]} {[%emt 00:03:18]} Be7 {[%clk 00:02:41]} {[%emt 00:02:28]}
21. Be5 {[%clk 01:07:29]} {[%emt 00:00:50]} Qe8 {[%clk 00:02:55]} {[%emt
00:00:02]} 22. h4 {[%clk 00:57:23]} {[%emt 00:10:22]} Kh8 {[%clk 00:02:33]}
{[%emt 00:00:37]} 23. Rc7 {[%clk 00:50:45]} {[%emt 00:06:52]} Be4 {[%clk
00:02:21]} {[%emt 00:00:27]} 24. Nxf6 {[%clk 00:50:54]} {[%emt 00:00:06]} Bxf6
{[%clk 00:01:59]} {[%emt 00:00:37]} 25. Bxf6 {[%clk 00:51:01]} {[%emt
00:00:08]} gxf6 {[%clk 00:02:13]} {[%emt 00:00:02]} 26. f3 {[%clk 00:49:02]}
{[%emt 00:02:14]} Bd5 {[%clk 00:00:57]} {[%emt 00:01:31]} 27. Qb2 {[%clk
00:48:49]} {[%emt 00:00:28]} Bxb3 {[%clk 00:00:51]} {[%emt 00:00:21]} 28. Qxb3
{[%clk 00:42:12]} {[%emt 00:06:52]} Rd8 {[%clk 00:01:05]} {[%emt 00:00:01]} 29.
Rdc1 {[%clk 00:41:02]} {[%emt 00:01:25]} Rd2 {[%clk 00:00:50]} {[%emt
00:00:29]} 30. Qc3 {[%clk 00:41:01]} {[%emt 00:00:17]} Qd8 {[%clk 00:01:01]}
{[%emt 00:00:05]} 31. Rc8 {[%clk 00:34:34]} {[%emt 00:06:42]} Rd1+ {[%clk
00:00:56]} {[%emt 00:00:19]} 32. Kf2 {[%clk 00:33:17]} {[%emt 00:01:32]} Rxc1
{[%clk 00:01:01]} {[%emt 00:00:11]} 33. Rxd8 {[%clk 00:33:29]} {[%emt
00:00:02]} Rxc3 {[%clk 00:01:15]} {[%emt 00:00:02]} 34. Rxf8+ {[%clk 00:33:40]}
{[%emt 00:00:04]} Kg7 {[%clk 00:01:29]} {[%emt 00:00:01]} 35. Rb8 {[%clk
00:33:51]} {[%emt 00:00:04]} Rc2+ {[%clk 00:01:29]} {[%emt 00:00:15]} 36. Kg3
{[%clk 00:33:59]} {[%emt 00:00:07]} Rb2 {[%clk 00:01:43]} {[%emt 00:00:02]} 37.
e4 {[%clk 00:34:06]} {[%emt 00:00:07]} b4 {[%clk 00:01:02]} {[%emt 00:00:55]}
38. Kh3 {[%clk 00:34:03]} {[%emt 00:00:17]} b3 {[%clk 00:01:08]} {[%emt
00:00:10]} 39. Kg3 {[%clk 00:32:34]} {[%emt 00:01:44]} h5 {[%clk 00:00:42]}
{[%emt 00:00:41]} 40. Kh3 {[%clk 00:32:45]} {[%emt 00:00:04]} Rb1 {[%clk
00:00:34]} {[%emt 00:00:24]} 41. Kg3 {[%clk 00:32:58]} {[%emt 00:00:02]} Rb2
{[%clk 00:00:48]} {[%emt 00:00:01]} 42. Kh3 {[%clk 00:33:10]} {[%emt 00:00:03]}
Rb1 {[%clk 00:00:40]} {[%emt 00:00:22]} 43. Kg3 {[%clk 00:33:21]} {[%emt
00:00:03]} e5 {[%clk 00:00:44]} {[%emt 00:00:11]} 44. Kf2 {[%clk 00:33:07]}
{[%emt 00:00:29]} b2 {[%clk 00:00:53]} {[%emt 00:00:06]} 45. Kg3 {[%clk
00:33:00]} {[%emt 00:00:22]} f5 {[%clk 00:01:00]} {[%emt 00:00:09]} 46. exf5
{[%clk 00:33:01]} {[%emt 00:00:13]} Kf6 {[%clk 00:01:14]} {[%emt 00:00:01]} 47.
Rb7 {[%clk 00:33:09]} {[%emt 00:00:07]} Rc1 {[%clk 00:00:43]} {[%emt 00:00:46]}
1/2-1/2

[Event "BPB Limburg Open 2019 Group A"]
[Site "Maastricht, Netherlands"]
[Date "2019.06.10"]
[Round "7.5"]
[White "Van Wely, Loek"]
[Black "Barzen, Pascal"]
[Result "1-0"]
[TimeControl "2h + 15 sec/move"]
[WhiteFideId "1000268"]
[BlackFideId "24653497"]
[WhiteElo "2604"]
[BlackElo "2292"]

1. Nf3 {[%clk 01:57:54]} {[%emt 00:02:35]} Nf6 {[%clk 02:00:24]} {[%emt
00:00:07]} 2. c4 {[%clk 01:57:58]} {[%emt 00:00:10]} e6 {[%clk 02:00:30]}
{[%emt 00:00:09]} 3. Nc3 {[%clk 01:58:07]} {[%emt 00:00:05]} d5 {[%clk
02:00:25]} {[%emt 00:00:20]} 4. d4 {[%clk 01:58:15]} {[%emt 00:00:07]} Be7
{[%clk 02:00:12]} {[%emt 00:00:28]} 5. Bf4 {[%clk 01:51:33]} {[%emt 00:06:56]}
O-O {[%clk 01:59:07]} {[%emt 00:01:21]} 6. e3 {[%clk 01:50:37]} {[%emt
00:01:12]} c5 {[%clk 01:53:16]} {[%emt 00:06:06]} 7. dxc5 {[%clk 01:50:08]}
{[%emt 00:00:43]} Bxc5 {[%clk 01:53:07]} {[%emt 00:00:24]} 8. a3 {[%clk
01:46:35]} {[%emt 00:03:49]} Nc6 {[%clk 01:50:07]} {[%emt 00:03:15]} 9. Qc2
{[%clk 01:45:29]} {[%emt 00:01:20]} Qa5 {[%clk 01:43:40]} {[%emt 00:06:42]} 10.
O-O-O {[%clk 01:34:31]} {[%emt 00:11:12]} a6 {[%clk 01:39:58]} {[%emt
00:03:58]} 11. Nd2 {[%clk 01:27:31]} {[%emt 00:07:15]} Be7 {[%clk 01:34:45]}
{[%emt 00:05:29]} 12. Kb1 {[%clk 01:19:28]} {[%emt 00:08:17]} Qb6 {[%clk
01:29:11]} {[%emt 00:05:49]} 13. g4 {[%clk 01:06:54]} {[%emt 00:12:49]} d4
{[%clk 01:18:22]} {[%emt 00:11:04]} 14. Na4 {[%clk 01:05:07]} {[%emt 00:02:01]}
Qa7 {[%clk 01:09:22]} {[%emt 00:09:15]} 15. Nf3 {[%clk 00:59:38]} {[%emt
00:05:43]} Nxg4 {[%clk 01:02:23]} {[%emt 00:07:16]} 16. h3 {[%clk 00:49:36]}
{[%emt 00:10:17]} Nf6 {[%clk 01:01:49]} {[%emt 00:00:49]} 17. exd4 {[%clk
00:49:45]} {[%emt 00:00:06]} b5 {[%clk 00:53:58]} {[%emt 00:08:07]} 18. cxb5
{[%clk 00:42:57]} {[%emt 00:07:02]} axb5 {[%clk 00:54:07]} {[%emt 00:00:06]} 19.
Bxb5 {[%clk 00:42:49]} {[%emt 00:00:22]} Na5 {[%clk 00:52:26]} {[%emt
00:01:56]} 20. Rhg1 {[%clk 00:37:10]} {[%emt 00:05:54]} Kh8 {[%clk 00:49:08]}
{[%emt 00:03:33]} 21. Be5 {[%clk 00:31:57]} {[%emt 00:05:28]} g6 {[%clk
00:43:38]} {[%emt 00:05:45]} 22. Ng5 {[%clk 00:19:30]} {[%emt 00:12:42]} Kg8
{[%clk 00:42:42]} {[%emt 00:01:12]} 23. Nc5 {[%clk 00:17:29]} {[%emt 00:02:16]}
Qb6 {[%clk 00:31:15]} {[%emt 00:11:42]} 24. Bd3 {[%clk 00:17:36]} {[%emt
00:00:08]} Nb7 {[%clk 00:30:22]} {[%emt 00:01:09]} 25. Nxh7 {[%clk 00:11:51]}
{[%emt 00:05:59]} Nxh7 {[%clk 00:26:30]} {[%emt 00:04:07]} 26. Bxg6 {[%clk
00:11:54]} {[%emt 00:00:12]} 1-0

[Event "BPB Limburg Open 2019 Group A"]
[Site "Maastricht, Netherlands"]
[Date "2019.06.10"]
[Round "7.6"]
[White "Van Dijk, Harold"]
[Black "Ernst, Sipke"]
[Result "0-1"]
[TimeControl "2h + 15 sec/move"]
[WhiteFideId "1006797"]
[BlackFideId "1004689"]
[WhiteElo "2250"]
[BlackElo "2541"]

1. e4 {[%clk 02:00:23]} {[%emt 00:00:06]} e5 {[%clk 01:59:54]} {[%emt
00:00:36]} 2. d4 {[%clk 02:00:28]} {[%emt 00:00:10]} exd4 {[%clk 02:00:05]}
{[%emt 00:00:05]} 3. c3 {[%clk 02:00:35]} {[%emt 00:00:06]} d5 {[%clk
02:00:07]} {[%emt 00:00:14]} 4. exd5 {[%clk 02:00:33]} {[%emt 00:00:16]} Nf6
{[%clk 01:59:44]} {[%emt 00:00:37]} 5. Bb5+ {[%clk 01:56:43]} {[%emt 00:04:05]}
Bd7 {[%clk 01:57:53]} {[%emt 00:02:07]} 6. Bc4 {[%clk 01:56:50]} {[%emt
00:00:08]} b5 {[%clk 01:51:53]} {[%emt 00:06:15]} 7. Bb3 {[%clk 01:55:52]}
{[%emt 00:01:13]} c5 {[%clk 01:48:49]} {[%emt 00:03:19]} 8. cxd4 {[%clk
01:52:37]} {[%emt 00:03:30]} c4 {[%clk 01:48:53]} {[%emt 00:00:12]} 9. Bc2
{[%clk 01:52:38]} {[%emt 00:00:13]} Bb4+ {[%clk 01:42:11]} {[%emt 00:06:57]} 10.
Nc3 {[%clk 01:52:21]} {[%emt 00:00:32]} O-O {[%clk 01:38:17]} {[%emt 00:04:10]}
11. Nge2 {[%clk 01:50:03]} {[%emt 00:02:33]} Bxc3+ {[%clk 01:37:03]} {[%emt
00:01:29]} 12. bxc3 {[%clk 01:50:02]} {[%emt 00:00:15]} Nxd5 {[%clk 01:37:08]}
{[%emt 00:00:10]} 13. O-O {[%clk 01:49:52]} {[%emt 00:00:25]} Re8 {[%clk
01:35:18]} {[%emt 00:02:06]} 14. Ng3 {[%clk 01:49:20]} {[%emt 00:00:47]} Nc6
{[%clk 01:20:36]} {[%emt 00:14:57]} 15. Bxh7+ {[%clk 01:47:24]} {[%emt
00:02:10]} Kxh7 {[%clk 01:20:48]} {[%emt 00:00:03]} 16. Qh5+ {[%clk 01:47:31]}
{[%emt 00:00:08]} Kg8 {[%clk 01:21:01]} {[%emt 00:00:02]} 17. Qxd5 {[%clk
01:47:36]} {[%emt 00:00:10]} Ne7 {[%clk 01:13:02]} {[%emt 00:08:14]} 18. Qg5
{[%clk 01:39:45]} {[%emt 00:08:04]} f6 {[%clk 01:08:54]} {[%emt 00:04:24]} 19.
Qh5 {[%clk 01:38:15]} {[%emt 00:01:45]} Bc6 {[%clk 01:05:13]} {[%emt 00:03:57]}
20. Bd2 {[%clk 01:35:49]} {[%emt 00:02:40]} Qd5 {[%clk 01:04:41]} {[%emt
00:00:48]} 21. Qxd5+ {[%clk 01:35:50]} {[%emt 00:00:13]} Nxd5 {[%clk 01:04:51]}
{[%emt 00:00:06]} 22. a3 {[%clk 01:34:31]} {[%emt 00:01:34]} a5 {[%clk
01:05:02]} {[%emt 00:00:03]} 23. Rfc1 {[%clk 01:33:47]} {[%emt 00:00:59]} g5
{[%clk 00:55:02]} {[%emt 00:10:15]} 24. h3 {[%clk 01:30:35]} {[%emt 00:03:26]}
Kf7 {[%clk 00:54:58]} {[%emt 00:00:20]} 25. Re1 {[%clk 01:24:08]} {[%emt
00:06:42]} Rxe1+ {[%clk 00:50:14]} {[%emt 00:05:00]} 26. Bxe1 {[%clk 01:16:07]}
{[%emt 00:08:15]} Nf4 {[%clk 00:50:16]} {[%emt 00:00:13]} 27. f3 {[%clk
01:16:05]} {[%emt 00:00:17]} Re8 {[%clk 00:50:27]} {[%emt 00:00:05]} 28. Kf1
{[%clk 01:16:05]} {[%emt 00:00:15]} Kg6 {[%clk 00:50:01]} {[%emt 00:00:41]} 29.
Bf2 {[%clk 01:13:52]} {[%emt 00:02:28]} Nd3 {[%clk 00:49:42]} {[%emt 00:00:34]}
30. Ne2 {[%clk 01:12:30]} {[%emt 00:01:36]} f5 {[%clk 00:49:51]} {[%emt
00:00:07]} 31. Nc1 {[%clk 01:12:37]} {[%emt 00:00:08]} g4 {[%clk 00:46:52]}
{[%emt 00:03:14]} 32. hxg4 {[%clk 01:11:08]} {[%emt 00:01:43]} fxg4 {[%clk
00:47:04]} {[%emt 00:00:03]} 33. Nxd3 {[%clk 01:09:05]} {[%emt 00:02:18]} cxd3
{[%clk 00:47:17]} {[%emt 00:00:03]} 34. Re1 {[%clk 01:09:14]} {[%emt 00:00:06]}
Rc8 {[%clk 00:40:07]} {[%emt 00:07:24]} 35. Re6+ {[%clk 01:06:01]} {[%emt
00:03:28]} Kf7 {[%clk 00:40:08]} {[%emt 00:00:13]} 36. Re5 {[%clk 01:05:35]}
{[%emt 00:00:42]} b4 {[%clk 00:39:13]} {[%emt 00:01:10]} 37. cxb4 {[%clk
01:02:41]} {[%emt 00:03:09]} axb4 {[%clk 00:39:09]} {[%emt 00:00:19]} 38. axb4
{[%clk 01:02:51]} {[%emt 00:00:06]} Bb5 {[%clk 00:35:58]} {[%emt 00:03:26]} 39.
Ke1 {[%clk 00:59:57]} {[%emt 00:03:09]} Rc1+ {[%clk 00:35:33]} {[%emt
00:00:40]} 40. Kd2 {[%clk 01:00:01]} {[%emt 00:00:10]} Rc2+ {[%clk 00:35:22]}
{[%emt 00:00:27]} 41. Kd1 {[%clk 00:58:16]} {[%emt 00:02:00]} Ba4 {[%clk
00:34:56]} {[%emt 00:00:41]} 42. Ra5 {[%clk 00:58:18]} {[%emt 00:00:12]} Rxf2+
{[%clk 00:28:30]} {[%emt 00:06:41]} 43. Rxa4 {[%clk 00:58:14]} {[%emt
00:00:20]} g3 {[%clk 00:28:44]} {[%emt 00:00:01]} 44. Ra5 {[%clk 00:54:37]}
{[%emt 00:03:52]} Rxg2 {[%clk 00:27:36]} {[%emt 00:01:22]} 45. Rg5 {[%clk
00:54:07]} {[%emt 00:00:44]} Rg1+ {[%clk 00:27:41]} {[%emt 00:00:10]} 46. Kd2
{[%clk 00:54:15]} {[%emt 00:00:06]} g2 {[%clk 00:27:55]} {[%emt 00:00:02]} 47.
b5 {[%clk 00:52:26]} {[%emt 00:02:04]} Ra1 {[%clk 00:27:55]} {[%emt 00:00:15]}
48. Rxg2 {[%clk 00:52:36]} {[%emt 00:00:05]} Ra2+ {[%clk 00:28:07]} {[%emt
00:00:02]} 49. Kxd3 {[%clk 00:52:46]} {[%emt 00:00:06]} Rxg2 {[%clk 00:28:20]}
{[%emt 00:00:03]} 50. Kc4 {[%clk 00:52:52]} {[%emt 00:00:09]} Ke6 {[%clk
00:28:30]} {[%emt 00:00:04]} 51. Kc5 {[%clk 00:52:59]} {[%emt 00:00:08]} Kd7
{[%clk 00:21:34]} {[%emt 00:07:11]} 0-1

[Event "BPB Limburg Open 2019 Group A"]
[Site "Maastricht, Netherlands"]
[Date "2019.06.10"]
[Round "7.7"]
[White "Simenon, Jozef"]
[Black "Van Foreest, Lucas"]
[Result "0-1"]
[TimeControl "2h + 15 sec/move"]
[WhiteFideId "1012916"]
[BlackFideId "1039792"]
[WhiteElo "2207"]
[BlackElo "2522"]

1. b4 {[%clk 02:00:27]} {[%emt 00:00:02]} b6 {[%clk 01:48:58]} {[%emt
00:11:33]} 2. Bb2 {[%clk 01:58:31]} {[%emt 00:02:11]} Bb7 {[%clk 01:49:06]}
{[%emt 00:00:07]} 3. e3 {[%clk 01:57:56]} {[%emt 00:00:49]} Nf6 {[%clk
01:49:06]} {[%emt 00:00:14]} 4. b5 {[%clk 01:55:14]} {[%emt 00:03:00]} e6
{[%clk 01:45:52]} {[%emt 00:03:28]} 5. Nf3 {[%clk 01:54:15]} {[%emt 00:01:13]}
Be7 {[%clk 01:43:25]} {[%emt 00:02:39]} 6. Be2 {[%clk 01:53:28]} {[%emt
00:01:05]} O-O {[%clk 01:42:25]} {[%emt 00:01:14]} 7. O-O {[%clk 01:52:43]}
{[%emt 00:01:02]} d6 {[%clk 01:31:56]} {[%emt 00:10:44]} 8. d4 {[%clk
01:46:42]} {[%emt 00:06:15]} c5 {[%clk 01:26:40]} {[%emt 00:05:31]} 9. bxc6
{[%clk 01:38:15]} {[%emt 00:08:43]} Nxc6 {[%clk 01:24:50]} {[%emt 00:02:06]} 10.
Nbd2 {[%clk 01:34:58]} {[%emt 00:03:30]} Qc7 {[%clk 01:23:26]} {[%emt
00:01:39]} 11. c4 {[%clk 01:31:22]} {[%emt 00:03:51]} e5 {[%clk 01:21:21]}
{[%emt 00:02:21]} 12. d5 {[%clk 01:24:11]} {[%emt 00:07:25]} Na5 {[%clk
01:14:02]} {[%emt 00:07:02]} 13. Qb1 {[%clk 01:22:35]} {[%emt 00:02:24]} Ba6
{[%clk 01:11:46]} {[%emt 00:02:29]} 14. Rc1 {[%clk 01:22:42]} {[%emt 00:00:10]}
Nb7 {[%clk 01:09:08]} {[%emt 00:02:49]} 15. Bf1 {[%clk 01:13:58]} {[%emt
00:09:03]} Nc5 {[%clk 01:04:48]} {[%emt 00:04:34]} 16. a4 {[%clk 01:14:09]}
{[%emt 00:00:04]} Rab8 {[%clk 01:01:38]} {[%emt 00:03:25]} 17. Ra3 {[%clk
01:12:17]} {[%emt 00:02:07]} Nfd7 {[%clk 00:57:16]} {[%emt 00:04:37]} 18. Qa1
{[%clk 01:10:35]} {[%emt 00:01:57]} f5 {[%clk 00:52:28]} {[%emt 00:05:02]} 19.
Nb1 {[%clk 01:01:57]} {[%emt 00:08:53]} g5 {[%clk 00:40:18]} {[%emt 00:12:26]}
20. Nc3 {[%clk 01:00:23]} {[%emt 00:01:49]} g4 {[%clk 00:40:24]} {[%emt
00:00:09]} 21. Ne1 {[%clk 00:57:58]} {[%emt 00:02:40]} Qd8 {[%clk 00:35:33]}
{[%emt 00:05:06]} 22. Nb5 {[%clk 00:56:33]} {[%emt 00:01:40]} Rb7 {[%clk
00:34:58]} {[%emt 00:00:50]} 23. Nc2 {[%clk 00:54:32]} {[%emt 00:02:16]} Qe8
{[%clk 00:32:43]} {[%emt 00:02:30]} 24. Nb4 {[%clk 00:52:28]} {[%emt 00:02:19]}
Rf6 {[%clk 00:31:02]} {[%emt 00:01:56]} 25. Nc6 {[%clk 00:49:48]} {[%emt
00:02:55]} Rh6 {[%clk 00:30:00]} {[%emt 00:01:17]} 26. a5 {[%clk 00:42:28]}
{[%emt 00:07:35]} Bxb5 {[%clk 00:28:15]} {[%emt 00:02:01]} 27. axb6 {[%clk
00:39:20]} {[%emt 00:03:23]} Ba4 {[%clk 00:26:33]} {[%emt 00:01:56]} 28. bxa7
{[%clk 00:38:14]} {[%emt 00:01:20]} Rxa7 {[%clk 00:23:33]} {[%emt 00:03:16]} 29.
Nxa7 {[%clk 00:37:23]} {[%emt 00:01:06]} Qh5 {[%clk 00:23:42]} {[%emt
00:00:05]} 30. h3 {[%clk 00:33:29]} {[%emt 00:04:09]} gxh3 {[%clk 00:23:51]}
{[%emt 00:00:06]} 31. Rxa4 {[%clk 00:19:59]} {[%emt 00:13:46]} hxg2 {[%clk
00:19:35]} {[%emt 00:04:31]} 32. Bxg2 {[%clk 00:19:49]} {[%emt 00:00:25]} Qh2+
{[%clk 00:19:48]} {[%emt 00:00:03]} 33. Kf1 {[%clk 00:19:27]} {[%emt 00:00:36]}
Rg6 {[%clk 00:20:01]} {[%emt 00:00:02]} 34. Nc6 {[%clk 00:06:46]} {[%emt
00:12:56]} Bh4 {[%clk 00:19:21]} {[%emt 00:00:55]} 35. Ra8+ {[%clk 00:04:15]}
{[%emt 00:02:46]} Kg7 {[%clk 00:19:30]} {[%emt 00:00:05]} 0-1

[Event "BPB Limburg Open 2019 Group A"]
[Site "Maastricht, Netherlands"]
[Date "2019.06.10"]
[Round "7.8"]
[White "Song, Raymond"]
[Black "Sadzikowski, Daniel"]
[Result "1-0"]
[TimeControl "2h + 15 sec/move"]
[WhiteFideId "3203824"]
[BlackFideId "1132253"]
[WhiteElo "2450"]
[BlackElo "2510"]

1. d4 {[%clk 02:00:27]} d5 {[%clk 01:58:34]} {[%emt 00:01:56]} 2. c4 {[%clk
02:00:38]} {[%emt 00:00:05]} e6 {[%clk 01:58:46]} {[%emt 00:00:03]} 3. Nf3
{[%clk 02:00:47]} {[%emt 00:00:05]} Nf6 {[%clk 01:58:53]} {[%emt 00:00:08]} 4.
g3 {[%clk 02:00:57]} {[%emt 00:00:05]} Bb4+ {[%clk 01:58:54]} {[%emt 00:00:14]}
5. Bd2 {[%clk 02:01:07]} {[%emt 00:00:05]} Bd6 {[%clk 01:59:03]} {[%emt
00:00:06]} 6. Nc3 {[%clk 02:01:11]} {[%emt 00:00:11]} O-O {[%clk 01:59:07]}
{[%emt 00:00:11]} 7. Bg2 {[%clk 02:00:03]} {[%emt 00:01:24]} dxc4 {[%clk
01:51:26]} {[%emt 00:07:56]} 8. O-O {[%clk 01:59:51]} {[%emt 00:00:26]} Nc6
{[%clk 01:47:47]} {[%emt 00:03:54]} 9. Qa4 {[%clk 01:56:23]} {[%emt 00:03:43]}
e5 {[%clk 01:43:56]} {[%emt 00:04:06]} 10. d5 {[%clk 01:52:05]} {[%emt
00:04:33]} Ne7 {[%clk 01:30:54]} {[%emt 00:13:17]} 11. Bg5 {[%clk 01:51:53]}
{[%emt 00:00:27]} Nd7 {[%clk 01:25:27]} {[%emt 00:05:41]} 12. Qxc4 {[%clk
01:51:21]} {[%emt 00:00:49]} h6 {[%clk 01:25:18]} {[%emt 00:00:24]} 13. Be3
{[%clk 01:46:20]} {[%emt 00:05:16]} a6 {[%clk 01:23:09]} {[%emt 00:02:24]} 14.
a4 {[%clk 01:42:37]} {[%emt 00:03:58]} f5 {[%clk 01:21:06]} {[%emt 00:02:18]}
15. Rac1 {[%clk 01:40:42]} {[%emt 00:02:10]} Qe8 {[%clk 01:18:46]} {[%emt
00:02:35]} 16. Ne1 {[%clk 01:32:05]} {[%emt 00:08:52]} e4 {[%clk 01:09:10]}
{[%emt 00:09:52]} 17. f4 {[%clk 01:29:43]} {[%emt 00:02:36]} exf3 {[%clk
01:09:01]} {[%emt 00:00:24]} 18. Nxf3 {[%clk 01:26:30]} {[%emt 00:03:28]} Ng6
{[%clk 01:08:27]} {[%emt 00:00:48]} 19. Bd2 {[%clk 01:14:44]} {[%emt 00:12:01]}
Nde5 {[%clk 01:06:31]} {[%emt 00:02:10]} 20. Nxe5 {[%clk 01:10:38]} {[%emt
00:04:22]} Nxe5 {[%clk 01:05:13]} {[%emt 00:01:33]} 21. Qd4 {[%clk 01:10:24]}
{[%emt 00:00:29]} Bd7 {[%clk 01:05:09]} {[%emt 00:00:19]} 22. Kh1 {[%clk
01:08:32]} {[%emt 00:02:07]} Qh5 {[%clk 01:02:33]} {[%emt 00:02:50]} 23. Bf3
{[%clk 01:03:18]} {[%emt 00:05:30]} Qg6 {[%clk 00:59:18]} {[%emt 00:03:30]} 24.
Qh4 {[%clk 01:02:19]} {[%emt 00:01:13]} b5 {[%clk 00:56:37]} {[%emt 00:02:56]}
25. axb5 {[%clk 00:59:12]} {[%emt 00:03:23]} axb5 {[%clk 00:55:30]} {[%emt
00:01:22]} 26. Bf4 {[%clk 00:59:06]} {[%emt 00:00:20]} Qe8 {[%clk 00:50:13]}
{[%emt 00:05:31]} 27. Bh5 {[%clk 00:57:35]} {[%emt 00:01:47]} Qd8 {[%clk
00:47:13]} {[%emt 00:03:15]} 28. Qh3 {[%clk 00:55:37]} {[%emt 00:02:13]} b4
{[%clk 00:42:30]} {[%emt 00:04:59]} 29. Nd1 {[%clk 00:55:21]} {[%emt 00:00:31]}
Qf6 {[%clk 00:42:24]} {[%emt 00:00:21]} 30. Ne3 {[%clk 00:51:58]} {[%emt
00:03:38]} b3 {[%clk 00:40:38]} {[%emt 00:02:01]} 31. Rc3 {[%clk 00:50:31]}
{[%emt 00:01:43]} Rab8 {[%clk 00:38:40]} {[%emt 00:02:13]} 32. Nd1 {[%clk
00:49:11]} {[%emt 00:01:35]} Rb5 {[%clk 00:36:48]} {[%emt 00:02:07]} 33. Qg2
{[%clk 00:46:50]} {[%emt 00:02:37]} Bc8 {[%clk 00:36:18]} {[%emt 00:00:44]} 34.
Nf2 {[%clk 00:42:50]} {[%emt 00:04:15]} Bb7 {[%clk 00:35:17]} {[%emt 00:01:16]}
35. Rd1 {[%clk 00:42:48]} {[%emt 00:00:17]} g6 {[%clk 00:24:30]} {[%emt
00:11:02]} 36. Bf3 {[%clk 00:42:58]} {[%emt 00:00:05]} g5 {[%clk 00:24:02]}
{[%emt 00:00:43]} 37. e4 {[%clk 00:43:11]} {[%emt 00:00:03]} Nxf3 {[%clk
00:09:15]} {[%emt 00:15:01]} 38. Rxf3 {[%clk 00:38:29]} {[%emt 00:04:57]} Qxb2
{[%clk 00:08:14]} {[%emt 00:01:16]} 39. Bxd6 {[%clk 00:34:19]} {[%emt
00:04:25]} cxd6 {[%clk 00:08:22]} {[%emt 00:00:07]} 40. Qf1 {[%clk 00:34:32]}
{[%emt 00:00:02]} Ra5 {[%clk 00:04:41]} {[%emt 00:03:56]} 41. Ng4 {[%clk
00:32:12]} {[%emt 00:02:34]} Ra2 {[%clk 00:04:07]} {[%emt 00:00:50]} 42. Nxh6+
{[%clk 00:30:21]} {[%emt 00:02:06]} Kg7 {[%clk 00:04:15]} {[%emt 00:00:07]} 43.
Qh3 {[%clk 00:30:33]} {[%emt 00:00:03]} Qe2 {[%clk 00:01:26]} {[%emt 00:03:04]}
44. Rdf1 {[%clk 00:26:48]} {[%emt 00:03:59]} Bc8 {[%clk 00:01:41]} {[%emt
00:00:02]} 45. Nxf5+ {[%clk 00:10:10]} {[%emt 00:16:53]} Rxf5 {[%clk 00:00:48]}
{[%emt 00:01:29]} 46. exf5 {[%clk 00:10:00]} {[%emt 00:00:26]} b2 {[%clk
00:00:35]} {[%emt 00:00:28]} 47. g4 {[%clk 00:08:49]} {[%emt 00:01:26]} Qe4
{[%clk 00:00:18]} {[%emt 00:00:32]} 48. f6+ {[%clk 00:08:33]} {[%emt 00:00:31]}
Kf7 {[%clk 00:00:19]} {[%emt 00:00:14]} 49. Qh5+ {[%clk 00:08:45]} {[%emt
00:00:02]} Qg6 {[%clk 00:00:17]} {[%emt 00:00:17]} 50. Qxg6+ {[%clk 00:08:56]}
{[%emt 00:00:05]} Kxg6 {[%clk 00:00:31]} 51. f7 {[%clk 00:09:03]} {[%emt
00:00:08]} 1-0